bitfinex/quotes_SOLUSD_20250217
["timestamp","ask_amount","ask_price","bid_price","bid_amount"]
[1739809736607,1.04598864,179.34,179.29,48.26423575]
[1739809736783,1.04598864,179.34,179.21,5.58]
[1739809736994,1.04582955,179.36,179.33,48.26423575]
[1739809737384,1.04582955,179.36,179.34,48.26423575]
[1739809737590,11.28137178,179.37,179.35,48.26423575]
[1739809737804,11.28137178,179.37,179.33,48.26423575]
[1739809737998,11.28137178,179.37,179.19,48.26423575]
[1739809738213,48.26423575,179.35,179.28,48.26423575]
[1739809738422,48.26423575,179.36,179.29,48.26423575]
[1739809738713,48.26423575,179.35,179.28,48.26423575]
[1739809738906,11.28137178,179.37,179.31,48.26423575]
[1739809739108,11.28137178,179.37,179.33,48.26423575]
[1739809739295,11.28137178,179.37,179.35,48.26423575]
[1739809739505,11.28137178,179.37,179.34,47.26423575]
[1739809739701,1.04558573,179.36,179.34,48.26423575]
[1739809739911,1.04558573,179.36,179.26,5.5782]
[1739809740223,1.04558573,179.36,179.2,13.9504]
[1739809740224,61.67608428,179.35,179.28,48.26423575]
[1739809740433,1.04590238,179.34,179.28,48.26423575]
[1739809740589,1.04584862,179.36,179.33,48.26423575]
[1739809740795,1.04563915,179.36,179.34,48.26423575]
[1739809741019,1.04551769,179.36,179.34,48.26423575]
[1739809741219,1.04551769,179.36,179.31,48.26423575]
[1739809741721,1.04551769,179.36,179.32,48.26423575]
[1739809741928,1.04551769,179.36,179.34,48.26423575]
[1739809742093,1.04554315,179.36,179.35,48.26423575]
[1739809742593,1.04554315,179.36,179.3,48.26423575]
[1739809743022,61.67608428,179.35,179.28,48.26423575]
[1739809743328,49.31013679,179.34,179.27,48.26423575]
[1739809743695,49.31013679,179.34,179.25,48.26423575]
[1739809743696,48.26423575,179.31,179.25,48.26423575]
[1739809743901,61.67608428,179.29,179.21,48.26423575]
[1739809744218,48.26423575,179.26,179.19,48.26423575]
[1739809744421,1.04635069,179.25,179.19,48.26423575]
[1739809744623,48.26423575,179.24,179.18,0.03]
[1739809744821,1.04645675,179.23,179.18,0.03]
[1739809745025,48.26423575,179.21,179.18,0.03]
[1739809745202,48.26423575,179.19,179.18,0.03]
[1739809745405,1.04667889,179.2,179.18,0.03]
[1739809746117,1.04671549,179.19,179.18,0.03]
[1739809746301,1.04656585,179.22,179.18,0.03]
[1739809746501,1.04656585,179.22,179.19,48.26423575]
[1739809746895,1.04640113,179.25,179.21,48.26423575]
[1739809747092,1.04640113,179.25,179.2,48.26423575]
[1739809747407,48.26423575,179.23,179.18,0.03]
[1739809747589,1.04655399,179.22,179.18,0.03]
[1739809748019,61.67608428,179.19,179.18,0.03]
[1739809748192,110.98719002,179.19,179.18,0.03]
[1739809748427,61.67608428,179.19,179.18,0.03]
[1739809748627,62.72302408,179.19,179.18,0.03]
[1739809749747,13.41184853,179.18,179.09,48.26423575]
[1739809750057,13.41184853,179.16,179.1,48.26423575]
[1739809750360,1.04703668,179.15,179.05,1.6165]
[1739809750559,1.04703668,179.15,179.12,48.26423575]
[1739809750867,48.26423575,179.16,179.01,48.26423575]
[1739809751031,13.41184853,179.14,179.01,48.26423575]
[1739809751232,1.04728534,179.13,179.08,48.26423575]
[1739809751527,1.04728534,179.13,179.01,53.85023575]
[1739809751528,20.0,179.06,179.0,11.7]
[1739809751758,48.26423575,179.04,179.0,11.7]
[1739809752093,48.26423575,179.04,178.83,48.26423575]
[1739809752094,13.41184853,178.97,178.92,48.26423575]
[1739809752347,1.04817318,178.96,178.9,48.26423575]
[1739809752544,48.26423575,178.95,178.83,48.26423575]
[1739809752748,48.26423575,178.92,178.72,214.04275537]
[1739809753148,20.0,178.89,178.72,200.05485537]
[1739809753384,2.06406584,178.89,178.88,48.39814113]
[1739809753548,27.54518213,179.19,178.88,5.72420538]
[1739809753549,1.04776093,178.99,178.88,5.72420538]
[1739809753880,1.04769034,179.06,178.92,48.26423575]
[1739809754177,49.31192609,179.06,178.98,48.26423575]
[1739809754379,48.26423575,179.03,178.96,48.26423575]
[1739809754546,1.04775643,179.02,178.96,48.26423575]
[1739809754750,1.04775643,179.02,178.98,48.26423575]
[1739809755277,1.04775643,179.02,178.99,48.26423575]
[1739809755479,1.04763595,179.02,178.92,53.85313575]
[1739809755780,1.04759486,179.07,179.01,96.5284715]
[1739809755976,1.04739917,179.06,178.92,67.82583575]
[1739809756148,49.31163397,179.1,179.03,48.26423575]
[1739809756354,48.26423575,179.06,178.99,48.26423575]
[1739809756567,49.31187645,179.05,178.98,48.26423575]
[1739809756991,1.0476407,179.05,178.99,48.26423575]
[1739809757294,1.0476407,179.05,179.0,48.26423575]
[1739809757456,1.04758043,179.04,179.01,48.26423575]
[1739809757650,102.495,179.15,179.03,48.26423575]
[1739809757651,1.04753049,179.07,179.03,48.26423575]
[1739809757884,1.04753049,179.07,179.06,48.26423575]
[1739809758183,136.82423575,179.13,179.06,48.26423575]
[1739809758353,1.04723066,179.12,179.07,48.26423575]
[1739809758554,1.04723066,179.12,179.08,48.26423575]
[1739809758758,1.04723066,179.12,179.07,48.26423575]
[1739809759077,1.04723066,179.12,179.08,48.26423575]
[1739809759291,1.04723066,179.12,179.09,48.26423575]
[1739809759492,1.04689605,179.15,179.11,48.26423575]
[1739809759786,88.56,179.18,179.01,48.26423575]
[1739809759787,1.0468,179.17,179.13,48.26423575]
[1739809759952,1.0468,179.17,179.14,48.26423575]
[1739809760157,1.0468,179.17,179.15,48.26423575]
[1739809760375,49.31103575,179.17,179.04,13.963]
[1739809760563,1.0468,179.17,179.11,48.26423575]
[1739809760761,1.0468,179.17,179.14,48.26423575]
[1739809760974,1.04666686,179.17,179.15,48.26423575]
[1739809761173,88.56,179.18,179.15,48.26423575]
[1739809761477,1.04661433,179.17,179.04,13.963]
[1739809761690,1.04661433,179.17,179.11,48.26423575]
[1739809761855,6.62801433,179.17,178.94,5.5884]
[1739809762054,48.26423575,179.15,179.08,48.26423575]
[1739809762255,1.04697499,179.14,179.08,48.26423575]
[1739809762469,1.04697499,179.14,179.11,48.26423575]
[1739809762674,1.04696579,179.17,179.12,48.26423575]
[1739809762972,1.04696579,179.17,179.11,48.26423575]
[1739809763162,1.04696579,179.17,179.01,48.26423575]
[1739809763354,49.31120154,179.17,179.1,48.26423575]
[1739809763553,1.04696579,179.17,179.11,48.26423575]
[1739809763951,1.04696579,179.17,179.12,48.26423575]
[1739809764169,1.04696579,179.17,179.13,48.26423575]
[1739809764551,1.04696579,179.17,179.15,48.26423575]
[1739809764854,1.0466536,179.16,179.1,48.26423575]
[1739809765056,1.0466907,179.17,179.14,48.26423575]
[1739809765256,1.0466907,179.17,179.13,48.26423575]
[1739809765456,1.0466907,179.17,179.14,48.26423575]
[1739809765678,1.04661762,179.17,179.14,48.26423575]
[1739809766672,89.60665944,179.18,179.16,29.648806]
[1739809766871,88.56,179.18,179.17,29.648806]
[1739809767068,6.62589328,179.23,179.17,29.648806]
[1739809767267,1.04649328,179.23,179.18,29.648806]
[1739809767475,6.62599328,179.23,179.17,29.648806]
[1739809767684,36.27479928,179.23,179.1,37.867506]
[1739809767861,29.648806,179.2,179.13,29.648806]
[1739809768064,1.04675552,179.19,179.13,29.648806]
[1739809768269,29.648806,179.16,179.09,29.648806]
[1739809768575,29.648806,179.14,179.07,29.648806]
[1739809768761,1.04703602,179.13,179.08,29.648806]
[1739809768962,50.69582743,179.15,179.08,29.648806]
[1739809769162,29.648806,179.14,179.07,29.648806]
[1739809769400,1.047145,179.13,179.09,29.648806]
[1739809769603,1.04701665,179.15,179.09,29.648806]
[1739809769800,1.04701665,179.15,179.11,29.648806]
[1739809770266,6.62901665,179.15,179.11,29.648806]
[1739809770686,20.0,179.12,179.09,29.648806]
[1739809770895,1.04703529,179.11,179.06,29.648806]
[1739809771103,1.04703529,179.11,179.05,29.648806]
[1739809771403,1.04703529,179.11,179.07,29.648806]
[1739809771570,20.0,179.12,179.08,29.648806]
[1739809771774,30.69590841,179.11,179.02,1.5031]
[1739809771997,30.69590841,179.11,179.03,29.648806]
[1739809772203,29.648806,179.09,179.02,29.648806]
[1739809772388,5.5844,179.07,179.03,29.648806]
[1739809772582,5.5844,179.07,178.95,1.5755]
[1739809772583,1.04738549,179.06,178.95,1.5755]
[1739809772789,1.04738549,179.06,179.01,48.23997346]
[1739809773093,1.04738549,179.06,178.95,1.5755]
[1739809773094,1.04738549,179.06,179.03,48.23997346]
[1739809773417,1.04726523,179.09,179.04,48.23997346]
[1739809773591,6.63126523,179.09,179.05,48.23997346]
[1739809773790,6.63126523,179.09,179.06,48.23997346]
[1739809774095,6.63126523,179.09,179.04,48.23997346]
[1739809774295,1.04726523,179.09,179.07,48.23997346]
[1739809774641,5.5828,179.12,179.01,5.5862]
[1739809774824,49.28726731,179.11,178.96,5.5878]
[1739809775119,1.04729385,179.11,179.07,48.23997346]
[1739809776006,5.5828,179.12,179.09,48.23997346]
[1739809776210,5.5825,179.13,179.11,48.23997346]
[1739809776507,5.5822,179.14,179.12,48.23997346]
[1739809777004,1.04674267,179.13,179.04,6.1592]
[1739809777211,48.23997346,179.12,179.05,48.23997346]
[1739809777388,55.10716633,179.11,179.04,48.23997346]
[1739809777591,48.23997346,179.1,179.03,48.23997346]
[1739809777791,6.86731157,179.09,179.03,48.23997346]
[1739809778111,1.04731157,179.09,179.04,48.23997346]
[1739809778314,1.04731157,179.09,179.03,48.23997346]
[1739809778526,19.5442,179.08,179.03,48.23997346]
[1739809778725,1.04726335,179.07,179.02,48.23997346]
[1739809778899,1.04726335,179.07,179.01,48.23997346]
[1739809779094,48.23997346,179.05,178.95,1.5755]
[1739809779299,48.23997346,179.05,178.98,48.23997346]
[1739809779300,49.28731994,179.04,178.98,48.23997346]
[1739809779702,48.23997346,179.02,178.95,1.5755]
[1739809779923,1.04734648,179.04,178.98,48.23997346]
[1739809779924,1.04758267,179.01,178.98,48.23997346]
[1739809780221,1.04755925,179.03,178.99,48.23997346]
[1739809780616,5.5859,179.02,179.0,48.23997346]
[1739809780819,5.5859,179.02,178.99,48.23997346]
[1739809781001,5.5859,179.02,179.0,48.23997346]
[1739809781202,5.5859,179.02,178.99,48.23997346]
[1739809781407,5.5859,179.02,179.0,48.23997346]
[1739809781611,5.5844,179.07,179.01,48.23997346]
[1739809781816,5.5844,179.07,179.05,48.23997346]
[1739809782018,5.5844,179.07,178.96,13.41184853]
[1739809782209,5.5844,179.07,179.04,48.23997346]
[1739809782622,15.006607,179.09,179.04,48.23997346]
[1739809782813,5.584,179.08,179.04,48.23997346]
[1739809783333,49.2871429,179.07,179.01,48.23997346]
[1739809783621,1.04716944,179.07,179.01,48.23997346]
[1739809783816,1.04716944,179.07,179.03,48.23997346]
[1739809784014,1.04716944,179.07,178.95,7.1635]
[1739809784015,5.584,179.08,179.04,48.23997346]
[1739809784332,5.584,179.08,179.05,48.23997346]
[1739809784928,5.584,179.08,179.04,48.23997346]
[1739809785119,5.584,179.08,179.05,48.23997346]
[1739809785421,5.5834,179.1,179.07,48.23997346]
[1739809785623,5.5834,179.1,179.08,48.23997346]
[1739809785799,5.5834,179.1,179.07,48.23997346]
[1739809786004,5.5834,179.1,179.01,48.23997346]
[1739809786005,6.63037001,179.1,179.01,48.23997346]
[1739809786210,6.63037001,179.1,179.06,48.23997346]
[1739809786929,6.63037001,179.1,179.07,48.23997346]
[1739809787232,20.58897001,179.1,179.05,48.23997346]
[1739809787529,20.0,179.07,178.95,1.5755]
[1739809787712,1.04737673,179.06,179.0,48.23997346]
[1739809789028,19.5475,179.05,179.0,48.23997346]
[1739809789229,1.04747511,179.04,179.0,48.23997346]
[1739809789430,1.04747511,179.04,178.99,48.23997346]
[1739809789723,1.04747511,179.04,179.01,48.23997346]
[1739809790131,1.04747511,179.04,179.0,48.23997346]
[1739809790714,1.04747511,179.04,179.01,48.23997346]
[1739809790925,5.585,179.05,179.02,48.23997346]
[1739809791429,5.5847,179.06,179.04,48.23997346]
[1739809792210,5.5844,179.07,179.04,48.23997346]
[1739809792417,6.63167377,179.07,179.04,48.23997346]
[1739809792611,5.5844,179.07,179.04,29.68229056]
[1739809793430,5.5841,179.08,179.04,29.68229056]
[1739809793625,89.62718138,179.09,179.07,29.68229056]
[1739809793626,88.58,179.09,179.07,29.68229056]
[1739809793839,88.58,179.09,179.08,29.68229056]
[1739809794624,94.1637,179.09,179.01,5.6161]
[1739809795003,94.1637,179.09,179.08,29.68229056]
[1739809795216,88.58,179.09,179.08,29.68229056]
[1739809795929,94.1637,179.09,179.06,29.68229056]
[1739809796429,1.04707303,179.08,179.04,29.68229056]
[1739809797162,1.04707303,179.08,179.05,29.68229056]
[1739809797339,5.5844,179.07,179.05,29.68229056]
[1739809797550,5.5844,179.07,179.06,29.68229056]
[1739809797724,88.58,179.09,179.06,29.68229056]
[1739809798032,94.1637,179.09,179.08,29.68229056]
[1739809798235,88.58,179.09,179.08,29.68229056]
[1739809798617,5.5822,179.14,179.08,29.68229056]
[1739809798817,5.5818,179.16,179.13,29.68229056]
[1739809799012,5.5818,179.16,179.14,29.68229056]
[1739809799220,50.26472154,179.16,179.1,29.68229056]
[1739809799425,29.68229056,179.14,179.01,0.03]
[1739809799726,30.72944036,179.13,179.07,29.68229056]
[1739809799916,1.0471498,179.13,179.07,29.68229056]
[1739809800438,1.0471498,179.13,179.1,29.68229056]
[1739809800738,1.04689376,179.15,179.1,29.68229056]
[1739809800920,29.68229056,179.13,179.01,29.71229056]
[1739809801235,30.72943331,179.12,179.05,29.68229056]
[1739809801418,19.542,179.1,179.05,29.68229056]
[1739809801621,1.04720421,179.09,179.06,29.68229056]
[1739809802456,1.04720421,179.09,179.05,29.68229056]
[1739809802612,1.04720421,179.09,179.06,29.68229056]
[1739809802812,5.5834,179.1,179.07,29.68229056]
[1739809803141,1.04707017,179.09,179.03,29.68229056]
[1739809803641,1.04707017,179.09,179.05,29.68229056]
[1739809803642,5.584,179.08,179.05,29.68229056]
[1739809803848,5.584,179.08,179.06,29.68229056]
[1739809804226,5.5831,179.11,179.07,29.68229056]
[1739809804449,5.5831,179.11,179.09,29.68229056]
[1739809804619,5.5822,179.14,179.1,29.68229056]
[1739809804818,5.5822,179.14,179.11,29.68229056]
[1739809805128,5.5822,179.14,179.1,29.68229056]
[1739809805728,5.5822,179.14,179.12,29.68229056]
[1739809805940,5.6452,179.14,179.12,29.68229056]
[1739809806350,0.063,179.14,179.13,29.68229056]
[1739809806738,0.063,179.14,179.11,29.68229056]
[1739809807049,0.063,179.14,179.12,29.68229056]
[1739809807345,0.063,179.14,179.13,29.68229056]
[1739809808146,0.063,179.14,179.13,35.26479056]
[1739809808826,0.063,179.14,179.08,13.9595]
[1739809808827,0.063,179.14,179.08,5.584]
[1739809809033,0.063,179.14,179.09,29.68229056]
[1739809809524,29.68229056,179.13,179.07,0.03]
[1739809809726,5.5831,179.11,179.07,0.03]
[1739809809924,6.63012968,179.11,179.07,0.03]
[1739809810122,29.68229056,179.09,179.07,0.03]
[1739809810326,50.72945795,179.08,178.99,29.68229056]
[1739809810520,29.68229056,179.06,178.99,29.68229056]
[1739809810745,29.68229056,179.1,179.05,29.68229056]
[1739809810746,1.04736789,179.1,179.05,29.68229056]
[1739809810944,1.04702618,179.1,179.05,29.68229056]
[1739809811141,1.04702618,179.1,179.01,29.68229056]
[1739809811451,29.68229056,179.09,178.96,12.0798]
[1739809811746,39.5454,179.07,178.96,6.4921]
[1739809811941,1.04732277,179.06,179.01,29.68229056]
[1739809812153,30.72961333,179.06,178.94,1.6138]
[1739809812449,1.04732277,179.06,179.01,29.68229056]
[1739809812647,1.04732277,179.06,179.01,48.24837001]
[1739809813250,1.04732277,179.06,179.02,48.24837001]
[1739809813423,5.584,179.09,179.05,48.24837001]
[1739809813627,88.56,179.11,179.07,48.24837001]
[1739809813934,94.1431,179.11,179.07,48.24837001]
[1739809814131,6.62970193,179.13,179.09,48.24837001]
[1739809814332,5.5825,179.13,179.11,48.24837001]
[1739809814542,5.5825,179.13,179.09,48.24837001]
[1739809814754,1.1097749,179.14,179.09,48.24837001]
[1739809815048,0.063,179.14,179.1,48.24837001]
[1739809815234,0.063,179.14,179.03,1.5052]
[1739809815435,0.063,179.14,179.1,48.24837001]
[1739809815634,5.6453,179.14,179.09,48.24837001]
[1739809815836,0.063,179.14,179.11,48.24837001]
[1739809816147,49.35799961,179.14,179.07,48.24837001]
[1739809816352,48.24837001,179.11,179.03,1.5052]
[1739809816528,1.04709999,179.1,179.05,48.24837001]
[1739809816730,68.24837001,179.12,179.05,48.24837001]
[1739809816925,1.0469887,179.11,179.03,1.5052]
[1739809817149,1.04698466,179.13,179.08,48.24837001]
[1739809817344,0.063,179.14,179.1,48.24837001]
[1739809817552,0.063,179.14,179.12,48.24837001]
[1739809817735,0.063,179.14,179.11,48.24837001]
[1739809818054,0.063,179.14,179.12,48.24837001]
[1739809818438,0.063,179.14,179.04,27.37504853]
[1739809818439,0.063,179.14,179.13,48.24837001]
[1739809820036,0.063,179.14,179.13,53.83087001]
[1739809820236,0.063,179.14,179.13,55.44377001]
[1739809820631,88.56,179.2,179.13,55.44377001]
[1739809820949,1.04623116,179.26,179.19,48.24837001]
[1739809821149,8.58426359,179.27,179.24,48.24837001]
[1739809821557,8.58426359,179.27,179.26,48.24837001]
[1739809822155,8.58426359,179.27,179.26,5.5784]
[1739809822449,8.58426359,179.27,179.26,48.24837001]
[1739809822648,0.063,179.29,179.26,48.24837001]
[1739809822864,0.063,179.29,179.28,48.24837001]
[1739809823029,0.063,179.29,179.28,96.49674002]
[1739809823981,0.063,179.29,179.28,102.07454002]
[1739809824144,0.063,179.35,179.3,48.24837001]
[1739809824344,0.063,179.35,179.34,48.24837001]
[1739809825158,0.063,179.35,179.34,96.49674002]
[1739809825360,0.063,179.35,179.34,102.83914002]
[1739809825563,0.063,179.35,179.34,54.59077001]
[1739809826471,0.063,179.35,179.34,48.24837001]
[1739809827354,0.063,179.35,179.27,5.5779]
[1739809827669,0.063,179.35,179.31,48.24837001]
[1739809827844,0.063,179.35,179.32,48.24837001]
[1739809828044,0.063,179.35,179.3,48.24837001]
[1739809828251,68.24837001,179.33,179.19,54.52927001]
[1739809828451,49.29418822,179.32,179.25,48.24837001]
[1739809828658,49.29418822,179.32,179.19,54.52927001]
[1739809828659,48.24837001,179.33,179.27,48.24837001]
[1739809828860,0.063,179.35,179.29,48.24837001]
[1739809829173,0.063,179.35,179.3,48.24837001]
[1739809829666,0.063,179.35,179.31,48.24837001]
[1739809829844,0.063,179.35,179.3,48.24837001]
[1739809830051,1.04556858,179.34,179.29,48.24837001]
[1739809830267,1.04556858,179.34,179.27,48.24837001]
[1739809830268,53.82467001,179.33,179.27,48.24837001]
[1739809830473,48.24837001,179.31,179.24,48.24837001]
[1739809830775,49.29424606,179.3,179.24,48.24837001]
[1739809830949,54.87056825,179.33,179.26,48.24837001]
[1739809831149,5.5763,179.33,179.29,48.24837001]
[1739809831556,0.063,179.35,179.31,48.24837001]
[1739809831769,0.063,179.35,179.32,48.24837001]
[1739809832147,1.10844273,179.35,179.3,48.24837001]
[1739809832469,48.24837001,179.31,179.19,6.2809]
[1739809832665,69.29426544,179.3,179.23,48.24837001]
[1739809832977,48.24837001,179.25,179.14,6.4117]
[1739809833276,1.0462348,179.24,179.18,48.24837001]
[1739809833585,48.24837001,179.23,179.17,48.24837001]
[1739809833964,1.04627677,179.27,179.22,48.24837001]
[1739809834165,1.0460496,179.27,179.22,48.24837001]
[1739809834371,68.24837001,179.25,179.19,48.24837001]
[1739809834572,1.04625008,179.24,179.19,48.24837001]
[1739809834762,53.82617001,179.28,179.21,48.24837001]
[1739809834965,48.24837001,179.26,179.2,48.24837001]
[1739809835365,49.29450641,179.25,179.19,48.24837001]
[1739809835579,1.0461364,179.25,179.19,48.24837001]
[1739809835772,53.82617001,179.28,179.22,48.24837001]
[1739809836093,5.5775,179.29,179.24,48.24837001]
[1739809836258,48.24837001,179.31,179.25,48.24837001]
[1739809836462,1.045863,179.33,179.26,48.24837001]
[1739809836688,5.5762,179.34,179.28,48.24837001]
[1739809836861,0.063,179.35,179.3,48.24837001]
[1739809837056,5.6388,179.35,179.3,48.24837001]
[1739809837371,5.6388,179.35,179.29,48.24837001]
[1739809837574,49.29398352,179.34,179.28,48.24837001]
[1739809838113,48.24837001,179.29,179.17,1.62]
[1739809838280,20.0,179.3,179.22,48.24837001]
[1739809838484,48.24837001,179.3,179.23,48.24837001]
[1739809838793,48.24837001,179.32,179.25,48.24837001]
[1739809838997,1.04591586,179.34,179.29,48.24837001]
[1739809839305,48.24837001,179.32,179.25,48.24837001]
[1739809839485,1.04559,179.33,179.25,48.24837001]
[1739809839689,53.88717001,179.35,179.28,48.24837001]
[1739809839887,1.04560066,179.34,179.28,48.24837001]
[1739809840072,53.88717001,179.35,179.29,48.24837001]
[1739809840272,5.6388,179.35,179.3,48.24837001]
[1739809840508,53.88717001,179.35,179.29,48.24837001]
[1739809840705,0.063,179.35,179.33,48.24837001]
[1739809840898,0.063,179.35,179.34,48.24837001]
[1739809841411,0.063,179.4,179.34,96.49674002]
[1739809841617,0.063,179.4,179.39,48.24837001]
[1739809842468,0.063,179.5,179.39,53.82277001]
[1739809842770,0.063,179.5,179.49,48.24837001]
[1739809842969,0.063,179.5,179.42,1.6145]
[1739809843276,0.063,179.5,179.46,48.24837001]
[1739809843475,0.063,179.5,179.49,48.24837001]
[1739809845399,0.063,179.5,179.49,124.24837001]
[1739809845983,0.063,179.53,179.49,48.24837001]
[1739809846188,0.063,179.53,179.52,48.24837001]
[1739809846617,0.063,179.53,179.52,53.81877001]
[1739809846917,0.063,179.53,179.52,48.24837001]
[1739809849614,0.063,179.53,179.52,102.06714002]
[1739809850407,5.5663,179.65,179.53,13.41184853]
[1739809850614,5.5663,179.66,179.57,48.24837001]
[1739809850915,19.4769,179.7,179.57,53.81717001]
[1739809851115,5.5648,179.7,179.57,67.22901854]
[1739809851318,5.5648,179.7,179.58,13.41184853]
[1739809851500,5.5648,179.7,179.57,19.4909]
[1739809851693,53.81317001,179.7,179.64,48.24837001]
[1739809851894,67.72517001,179.7,179.63,48.24837001]
[1739809852089,67.72517001,179.7,179.64,48.24837001]
[1739809852293,5.5648,179.7,179.66,48.24837001]
[1739809852808,68.24837001,179.7,179.64,48.24837001]
[1739809853013,48.24837001,179.69,179.63,48.24837001]
[1739809853411,20.0,179.7,179.65,48.24837001]
[1739809853627,20.0,179.7,179.66,48.24837001]
[1739809853821,5.5645,179.71,179.66,48.24837001]
[1739809854005,5.5645,179.71,179.67,48.24837001]
[1739809854196,5.5645,179.71,179.66,48.24837001]
[1739809854393,5.5645,179.71,179.65,48.24837001]
[1739809854628,48.24837001,179.69,179.63,48.24837001]
[1739809854914,48.31137001,179.7,179.63,48.24837001]
[1739809855131,0.063,179.7,179.65,48.24837001]
[1739809855493,0.063,179.7,179.66,48.24837001]
[1739809855923,0.063,179.7,179.65,48.24837001]
[1739809856720,0.063,179.7,179.67,48.24837001]
[1739809857493,0.063,179.7,179.68,48.24837001]
[1739809858109,0.063,179.7,179.67,48.24837001]
[1739809858308,48.31137001,179.7,179.64,48.24837001]
[1739809858522,48.24837001,179.69,179.63,48.24837001]
[1739809858704,0.063,179.7,179.65,48.24837001]
[1739809859021,0.063,179.7,179.68,48.24837001]
[1739809859338,0.063,179.7,179.67,48.24837001]
[1739809859512,0.063,179.7,179.66,48.24837001]
[1739809859713,0.063,179.7,179.67,48.24837001]
[1739809859910,0.063,179.7,179.66,48.24837001]
[1739809860421,0.063,179.7,179.67,48.24837001]
[1739809860803,0.063,179.7,179.58,19.4898]
[1739809860804,48.31137001,179.7,179.64,48.24837001]
[1739809861206,48.24837001,179.69,179.63,48.24837001]
[1739809861425,0.063,179.7,179.65,48.24837001]
[1739809861619,48.31137001,179.7,179.63,48.24837001]
[1739809861821,48.24837001,179.67,179.61,48.24837001]
[1739809862018,48.24837001,179.69,179.62,48.24837001]
[1739809862211,1.10666916,179.7,179.65,48.24837001]
[1739809862423,0.063,179.7,179.66,48.24837001]
[1739809862927,0.063,179.7,179.64,48.24837001]
[1739809863123,0.063,179.7,179.69,48.24837001]
[1739809863301,0.063,179.7,179.59,13.41184853]
[1739809863302,0.063,179.7,179.61,5.5673]
[1739809863504,48.24837001,179.69,179.62,48.24837001]
[1739809863825,48.24837001,179.64,179.58,48.24837001]
[1739809864053,48.24837001,179.62,179.56,48.24837001]
[1739809864365,48.24837001,179.63,179.56,48.24837001]
[1739809864650,48.24837001,179.63,179.57,48.24837001]
[1739809864941,5.5651,179.69,179.62,48.24837001]
[1739809865146,5.5651,179.69,179.67,48.24837001]
[1739809865310,0.063,179.73,179.68,48.24837001]
[1739809865624,0.063,179.73,179.69,48.24837001]
[1739809866019,5.6278,179.7,179.68,48.24837001]
[1739809866325,0.063,179.7,179.58,13.9208]
[1739809866508,20.063,179.7,179.65,48.24837001]
[1739809866704,0.063,179.7,179.67,48.24837001]
[1739809867013,0.063,179.7,179.69,48.24837001]
[1739809867621,0.063,179.7,179.67,48.24837001]
[1739809867927,0.063,179.7,179.65,48.24837001]
[1739809868129,48.24837001,179.69,179.62,48.24837001]
[1739809868425,0.063,179.7,179.66,48.24837001]
[1739809868744,48.24837001,179.67,179.6,48.27837001]
[1739809868915,48.24837001,179.67,179.61,48.24837001]
[1739809869420,48.24837001,179.65,179.6,0.03]
[1739809869614,6.4959,179.7,179.6,0.03]
[1739809869615,48.24837001,179.67,179.61,48.24837001]
[1739809869821,48.24837001,179.67,179.6,0.03]
[1739809869822,55.78802649,179.7,179.64,48.24837001]
[1739809870019,48.31137001,179.7,179.64,48.24837001]
[1739809870216,0.063,179.7,179.65,48.24837001]
[1739809870413,48.24837001,179.69,179.6,0.03]
[1739809870730,48.24837001,179.69,179.63,48.24837001]
[1739809870907,1.04363395,179.68,179.63,48.24837001]
[1739809871104,1.04363395,179.68,179.6,0.03]
[1739809871105,49.29200396,179.68,179.61,48.24837001]
[1739809871330,48.24837001,179.65,179.6,0.03]
[1739809871626,48.24837001,179.62,179.6,0.03]
[1739809871829,49.29238636,179.61,179.54,48.24837001]
[1739809872013,48.24837001,179.6,179.54,48.24837001]
[1739809872212,48.24837001,179.6,179.48,5.5714]
[1739809872213,48.24837001,179.61,179.55,48.24837001]
[1739809872418,5.5676,179.61,179.57,48.24837001]
[1739809873129,5.5666,179.64,179.6,48.24837001]
[1739809873433,5.5666,179.64,179.62,48.24837001]
[1739809873731,5.5657,179.67,179.63,48.24837001]
[1739809873929,5.5657,179.67,179.65,48.24837001]
[1739809874320,93.8454,179.69,179.66,48.24837001]
[1739809874522,0.063,179.7,179.68,48.24837001]
[1739809874722,0.063,179.7,179.69,48.24837001]
[1739809877215,0.063,179.7,179.67,48.24837001]
[1739809877616,0.063,179.7,179.66,48.24837001]
[1739809877948,49.35480828,179.7,179.64,48.24837001]
[1739809878114,48.24837001,179.67,179.61,48.24837001]
[1739809878432,48.24837001,179.65,179.63,0.03]